fUST/lending_fUST_20251231
["ID","MTS","AMOUNT","RATE_DAILY","PERIOD"]
[400196842,1767191443587,-500.0,0.00011603,2]
[400196843,1767191443596,-500.0,0.00011603,2]
[400196844,1767191443605,-500.0,0.00011603,2]
[400196845,1767191443615,-165.26271876,0.00011603,2]
[400196846,1767191443624,-500.0,0.00011603,2]
[400196847,1767191443634,-500.0,0.00011603,2]
[400196848,1767191443646,-500.0,0.00011603,2]
[400196849,1767191443656,-2579.17784983,0.00011648,2]
[400196850,1767191443665,-31110.0,0.00011648,2]
[400196851,1767191443675,-533.88981491,0.00011698,2]
[400196852,1767191443686,-303.4572356,0.000117,2]
[400196853,1767191443696,-164.22007656,0.0001174,2]
[400196854,1767191443705,-542.37511605,0.0001174,2]
[400196855,1767191443715,-500.0,0.0001174,2]
[400196856,1767191443727,-500.0,0.0001174,2]
[400196857,1767191443737,-500.0,0.0001174,2]
[400196858,1767191443746,-500.0,0.0001174,2]
[400196859,1767191443756,-500.0,0.0001174,2]
[400196860,1767191443766,-500.0,0.0001174,2]
[400196861,1767191443775,-1400.0,0.000118,2]
[400196862,1767191443785,-500.0,0.00011877,2]
[400196863,1767191443795,-500.0,0.00011877,2]
[400196864,1767191443805,-500.0,0.00011877,2]
[400196865,1767191443814,-413.92678941,0.00011877,2]
[400196866,1767191443824,-500.0,0.00011877,2]
[400196867,1767191443834,-500.0,0.00011877,2]
[400196868,1767191443843,-1699.06548865,0.0001197,2]
[400196869,1767191443852,-500.0,0.00012014,2]
[400196870,1767191443863,-500.0,0.00012014,2]
[400196871,1767191443872,-500.0,0.00012014,2]
[400196872,1767191443882,-500.0,0.00012014,2]
[400196873,1767191443891,-500.0,0.00012014,2]
[400196874,1767191443901,-300.0,0.00012145,2]
[400196875,1767191444013,-420.0,0.00012145,2]
[400196876,1767191444023,-300.0,0.00012145,2]
[400196877,1767191444034,-500.0,0.00012151,2]
[400196878,1767191444046,-500.0,0.00012151,2]
[400196879,1767191444055,-500.0,0.00012151,2]
[400196880,1767191444065,-500.0,0.00012151,2]
[400196881,1767191444075,-300.0,0.00012165,2]
[400196882,1767191444096,-300.0,0.00012165,2]
[400196883,1767191444115,-300.0,0.00012165,2]
[400196884,1767191444126,-300.0,0.00012165,2]
[400196885,1767191444137,-300.0,0.00012165,2]
[400196886,1767191444146,-300.0,0.00012165,2]
[400196887,1767191444156,-300.0,0.00012165,2]
[400196888,1767191444168,-300.0,0.00012165,2]
[400196889,1767191444180,-300.0,0.00012165,2]
[400196890,1767191444189,-300.0,0.00012165,2]
[400196891,1767191444199,-300.0,0.00012165,2]
[400196892,1767191444211,-300.0,0.00012165,2]
[400196893,1767191444222,-300.0,0.00012165,2]
[400196894,1767191444233,-300.0,0.00012165,2]
[400196895,1767191444243,-300.0,0.00012165,2]
[400196897,1767191444252,-600.0,0.00012165,2]
[400196898,1767191444262,-2674.60743027,0.00012196,2]
[400196899,1767191444271,-32261.07,0.00012196,2]
[400196900,1767191444281,-553.64373807,0.00012246,2]
[400196901,1767191444290,-500.0,0.00012288,2]
[400196902,1767191444299,-500.0,0.00012288,2]
[400196903,1767191444309,-301.43282631,0.00012288,2]
[400196904,1767191444318,-500.0,0.00012288,2]
[400196905,1767191444328,-257.31,0.00012343,2]
[400196906,1767191444338,-500.0,0.00012425,2]
[400196907,1767191444349,-500.0,0.00012425,2]
[400196908,1767191444359,-500.0,0.00012425,2]
[400196909,1767191444368,-326.52528195,0.00012519,2]
[400196910,1767191444378,-151.0,0.00012519,2]
[400196911,1767191444387,-500.0,0.00012562,2]
[400196912,1767191444397,-500.0,0.00012562,2]
[400196913,1767191444407,-500.0,0.00012562,2]
[400196914,1767191444416,-500.0,0.00012699,2]
[400196916,1767191444426,-500.0,0.00012699,2]
[400196917,1767191444435,-500.0,0.00012699,2]
[400196918,1767191444445,-1214.47633489,0.00012716,2]
[400196919,1767191444455,-1203.8912458,0.00012741,2]
[400196920,1767191444466,-2773.56790519,0.00012744,2]
[400196921,1767191444476,-33454.72959,0.00012744,2]
[400196922,1767191444486,-574.12855637,0.00012794,2]
[400196923,1767191444496,-1506.0,0.000128,3]
[400196924,1767191444506,-500.0,0.00012836,2]
[400196925,1767191444515,-500.0,0.00012836,2]
[400196926,1767191444525,-800.0,0.00012912,2]
[400196927,1767191444534,-800.0,0.00012923,2]
[400196928,1767191444543,-800.0,0.00012926,2]
[400196929,1767191444552,-800.0,0.00012927,2]
[400196930,1767191444562,-800.0,0.00012939,2]
[400196931,1767191444572,-1074.4154693,0.00012953,2]
[400196932,1767191444582,-800.0,0.00012956,2]
[400196933,1767191444592,-800.0,0.00012964,2]
[400196934,1767191444601,-800.0,0.00012965,2]
[400196935,1767191444610,-391.17925611,0.00012973,2]
[400196936,1767191444620,-500.0,0.00012973,2]
[400196937,1767191444629,-800.0,0.0001301,2]
[400196938,1767191444639,-800.0,0.00013036,2]
[400196939,1767191444649,-800.0,0.00013042,2]
[400196940,1767191444661,-403.54438247,0.00013053,2]
[400196941,1767191444671,-800.0,0.00013058,2]
[400196942,1767191444682,-800.0,0.00013073,2]
[400196943,1767191444692,-800.0,0.00013075,2]
[400196944,1767191444701,-196.53401563,0.00013088,7]
[400196945,1767191444711,-800.0,0.00013089,2]
[400196946,1767191444721,-608.41184808,0.0001311,2]
[400196947,1767191444734,-800.0,0.00013128,2]
[400196948,1767191444743,-800.0,0.00013132,2]
[400196949,1767191444753,-152.24102269,0.00013134,2]
[400196950,1767191444763,-159.07525944,0.000132,2]
[400196951,1767191444773,-500.0,0.00013273,2]
[400196952,1767191444783,-500.0,0.00013273,2]
[400196953,1767191444793,-500.0,0.00013273,2]
[400196954,1767191444803,-413.99757981,0.00013273,2]
[400196955,1767191444813,-500.0,0.00013273,2]
[400196956,1767191444823,-315.88685405,0.00013273,2]
[400196957,1767191444833,-500.0,0.00013273,2]
[400196958,1767191444843,-500.0,0.00013273,2]
[400196959,1767191444853,-500.0,0.00013273,2]
[400196960,1767191444863,-500.0,0.00013273,2]
[400196961,1767191444873,-500.0,0.00013273,2]
[400196962,1767191444883,-500.0,0.00013273,2]
[400196963,1767191444893,-500.0,0.00013273,2]
[400196964,1767191444903,-500.0,0.00013273,2]
[400196965,1767191444912,-500.0,0.00013273,2]
[400196966,1767191444922,-500.0,0.00013273,2]
[400196967,1767191444931,-500.0,0.00013273,2]
[400196968,1767191444941,-544.63270575,0.00013273,2]
[400196969,1767191444951,-381.16221649,0.00013273,2]
[400196970,1767191444961,-500.0,0.00013273,2]
[400196971,1767191444970,-500.0,0.00013273,2]
[400196972,1767191444980,-500.0,0.00013273,2]
[400196973,1767191444989,-500.0,0.00013273,2]
[400196974,1767191444998,-500.0,0.00013273,2]
[400196975,1767191445008,-500.0,0.00013273,2]
[400196976,1767191445018,-500.0,0.00013273,2]
[400196977,1767191445027,-500.0,0.00013273,2]
[400196978,1767191445037,-500.0,0.00013273,2]
[400196979,1767191445046,-500.0,0.00013273,2]
[400196980,1767191445056,-500.0,0.00013273,2]
[400196981,1767191445065,-500.0,0.00013273,2]
[400196982,1767191445075,-500.0,0.00013273,2]
[400196983,1767191445085,-602.47879957,0.00013273,2]
[400196984,1767191445094,-500.0,0.00013273,2]
[400196985,1767191445103,-500.0,0.00013273,2]
[400196986,1767191445112,-500.0,0.00013273,2]
[400196987,1767191445127,-499.96763801,0.00013273,2]
[400196988,1767191445141,-500.0,0.00013273,2]
[400196989,1767191445157,-500.0,0.00013273,2]
[400196990,1767191445168,-500.0,0.00013273,2]
[400196991,1767191445181,-500.0,0.00013273,2]
[400196992,1767191445194,-500.0,0.00013273,2]
[400196993,1767191445210,-500.0,0.00013273,2]
[400196994,1767191445225,-500.0,0.00013273,2]
[400196995,1767191445238,-500.0,0.00013273,2]
[400196996,1767191445252,-500.0,0.00013273,2]
[400196997,1767191445267,-500.0,0.00013273,2]
[400196998,1767191445281,-2876.18991768,0.00013292,2]
[400196999,1767191445294,-34692.55458483,0.00013292,2]
[400197000,1767191445307,-776.0,0.000133,2]
[400197001,1767191445319,-595.37131296,0.00013342,2]
[400197002,1767191445332,-587.0,0.00013346,2]
[400197003,1767191445347,-720.0,0.00013382,2]
[400197004,1767191445359,-9553.69903552,0.00013422,2]
[400197005,1767191445370,-514.62,0.00013466,2]
[400197006,1767191445382,-9960.45703834,0.0001354,2]
[400197007,1767191445394,-300.0,0.00013673,2]
[400197008,1767191445407,-500.0,0.00013698,2]
[400197009,1767191445421,-500.0,0.00013698,2]
[400197010,1767191445435,-503.20098078,0.00013698,2]
[400197011,1767191445448,-500.0,0.00013698,2]
[400197012,1767191445462,-500.0,0.00013698,2]
[400197013,1767191445476,-500.0,0.00013698,2]
[400197014,1767191445489,-500.0,0.00013698,2]
[400197015,1767191445500,-500.0,0.00013698,2]
[400197016,1767191445510,-500.0,0.00013698,2]
[400197017,1767191445521,-500.0,0.00013698,2]
[400197018,1767191445534,-500.0,0.00013698,2]
[400197019,1767191445549,-500.0,0.00013698,2]
[400197020,1767191445563,-500.0,0.00013698,2]
[400197021,1767191445574,-429.40593815,0.00013698,2]
[400197022,1767191445586,-3496.67,0.00013698,2]
[400197023,1767191445600,-3496.67,0.00013698,2]
[400197024,1767191445613,-3496.67,0.00013698,2]
[400197025,1767191445625,-3496.67,0.00013698,2]
[400197026,1767191445637,-3496.67,0.00013698,2]
[400197027,1767191445653,-3496.67,0.00013698,2]
[400197028,1767191445665,-3496.67,0.00013698,2]
[400197029,1767191445676,-3496.67,0.00013698,2]
[400197030,1767191445690,-3496.67,0.00013698,2]
[400197031,1767191445701,-3496.67,0.00013698,2]
[400197032,1767191445719,-3496.67,0.00013698,2]
[400197033,1767191445731,-3496.67,0.00013698,2]
[400197034,1767191445743,-3496.67,0.00013698,2]
[400197035,1767191445754,-3496.67,0.00013698,2]
[400197036,1767191445767,-3496.67,0.00013698,2]
[400197037,1767191445780,-3496.67,0.00013698,2]
[400197038,1767191445792,-3496.67,0.00013698,2]
[400197039,1767191445804,-3496.67,0.00013698,2]
[400197040,1767191445815,-3496.67,0.00013698,2]
[400197041,1767191445828,-3496.67,0.00013698,2]
[400197042,1767191445839,-3496.67,0.00013698,2]
[400197043,1767191445851,-3496.67,0.00013698,2]
[400197044,1767191445863,-3496.67,0.00013698,2]
[400197045,1767191445874,-3496.6955997,0.00013698,2]
[400197046,1767191445887,-500.0,0.00013698,2]
[400197047,1767191445899,-500.0,0.00013698,2]
[400197048,1767191445911,-500.0,0.00013698,2]
[400197049,1767191445922,-500.0,0.00013698,2]
[400197050,1767191445934,-500.0,0.00013698,2]
[400197051,1767191445945,-500.0,0.00013698,2]
[400197052,1767191445957,-500.0,0.00013698,2]
[400197053,1767191445968,-500.0,0.00013698,2]
[400197054,1767191445980,-500.0,0.00013698,2]
[400197055,1767191445991,-500.0,0.00013698,2]
[400197056,1767191446003,-458.86833984,0.00013698,2]
[400197057,1767191446014,-500.0,0.00013698,2]
[400197058,1767191446026,-568.43490835,0.00013698,2]
[400197059,1767191446037,-500.0,0.00013698,2]
[400197060,1767191446048,-500.0,0.00013698,2]
[400197061,1767191446059,-500.0,0.00013698,2]
[400197062,1767191446071,-500.0,0.00013698,2]
[400197063,1767191446083,-500.0,0.00013698,2]
[400197064,1767191446095,-500.0,0.00013698,2]
[400197065,1767191446106,-500.0,0.00013698,2]
[400197066,1767191446117,-500.0,0.00013698,2]
[400197067,1767191446129,-500.0,0.00013698,2]
[400197068,1767191446141,-319.44,0.00013698,2]
[400197069,1767191446152,-450.0,0.00013698,2]
[400197070,1767191446163,-500.0,0.00013698,2]
[400197071,1767191446175,-500.0,0.00013698,2]
[400197072,1767191446186,-500.0,0.00013698,2]
[400197073,1767191446198,-500.0,0.00013698,2]
[400197075,1767191446211,-500.0,0.00013698,2]
[400197076,1767191446222,-500.0,0.00013698,2]
[400197077,1767191446234,-500.0,0.00013698,2]
[400197078,1767191446245,-500.0,0.00013698,2]
[400197079,1767191446257,-500.0,0.00013698,2]
[400197080,1767191446268,-500.0,0.00013698,2]
[400197081,1767191446280,-500.0,0.00013698,2]
[400197082,1767191446292,-500.0,0.00013698,2]
[400197083,1767191446304,-500.0,0.00013698,2]
[400197084,1767191446316,-500.0,0.00013698,2]
[400197086,1767191446328,-352.77068895,0.00013698,2]
[400197088,1767191446339,-1519.51,0.00013698,2]
[400197089,1767191446350,-1519.51,0.00013698,2]
[400197091,1767191446362,-1519.51,0.00013698,2]
[400197092,1767191446373,-1519.51,0.00013698,2]
[400197093,1767191446386,-1519.51,0.00013698,2]
[400197094,1767191446398,-1519.51,0.00013698,2]
[400197095,1767191446411,-1519.51,0.00013698,2]
[400197096,1767191446420,-1519.51,0.00013698,2]
[400197097,1767191446430,-1519.51,0.00013698,2]
[400197098,1767191446600,-1519.51,0.00013698,2]
[400197099,1767191446612,-1519.51,0.00013698,2]
[400197100,1767191446621,-1519.51,0.00013698,2]
[400197101,1767191446631,-1519.51,0.00013698,2]
[400197102,1767191446642,-1519.51,0.00013698,2]
[400197103,1767191446653,-1519.51,0.00013698,2]
[400197104,1767191446663,-1519.51,0.00013698,2]
[400197105,1767191446672,-1519.51,0.00013698,2]
[400197106,1767191446683,-1519.51,0.00013698,2]
[400197107,1767191446692,-1519.51,0.00013698,2]
[400197108,1767191446703,-1519.51,0.00013698,2]
[400197109,1767191446713,-1519.51,0.00013698,2]
[400197110,1767191446723,-1519.51,0.00013698,2]
[400197111,1767191446733,-1519.51,0.00013698,2]
[400197112,1767191446743,-1519.52234652,0.00013698,2]
[400197113,1767191446753,-500.0,0.00013698,2]
[400197114,1767191446762,-500.0,0.00013698,2]
[400197115,1767191446772,-500.0,0.00013698,2]
[400197116,1767191446781,-500.0,0.00013698,2]
[400197117,1767191446791,-385.90947657,0.00013698,2]
[400197118,1767191446800,-12249.2223288,0.00013699,2]
[400197119,1767191446809,-2406.304827,0.00013699,2]
[400197120,1767191446819,-15490.5579877,0.00013699,2]
[400197121,1767191446828,-1000.0,0.00013699,2]
[400197122,1767191446838,-2942.9097946,0.00013699,2]
[400197123,1767191446847,-155.015211,0.00013699,2]
[400197124,1767191446857,-1154.268273,0.00013699,2]
[400197125,1767191446867,-1544.115007,0.00013699,2]
[400197126,1767191446877,-1544.115007,0.00013699,2]
[400197127,1767191446887,-1544.115007,0.00013699,2]
[400197128,1767191446896,-1544.115007,0.00013699,2]
[400197129,1767191446906,-1544.115007,0.00013699,2]
[400197130,1767191446915,-1544.115007,0.00013699,2]
[400197131,1767191446924,-1544.115007,0.00013699,2]
[400197132,1767191446934,-1544.115007,0.00013699,2]
[400197133,1767191446943,-1544.115007,0.00013699,2]
[400197134,1767191446952,-1544.115007,0.00013699,2]
[400197135,1767191446962,-1544.115007,0.00013699,2]
[400197136,1767191446972,-1544.115007,0.00013699,2]
[400197137,1767191446981,-1544.115007,0.00013699,2]
[400197138,1767191446991,-1544.115007,0.00013699,2]
[400197139,1767191447000,-1544.115007,0.00013699,2]
[400197140,1767191447010,-1544.115007,0.00013699,2]
[400197141,1767191447019,-1544.115007,0.00013699,2]
[400197142,1767191447028,-1544.115007,0.00013699,2]
[400197143,1767191447037,-1544.115007,0.00013699,2]
[400197144,1767191447047,-1544.115005,0.00013699,2]
[400197145,1767191447057,-151.0,0.00013699,2]
[400197146,1767191447066,-151.0,0.00013699,2]
[400197147,1767191447075,-151.0,0.00013699,2]
[400197148,1767191447085,-151.0,0.00013699,2]
[400197149,1767191447094,-151.0,0.00013699,2]
[400197150,1767191447103,-151.0,0.00013699,2]
[400197151,1767191447113,-151.0,0.00013699,2]
[400197152,1767191447123,-151.0,0.00013699,2]
[400197153,1767191447132,-151.0,0.00013699,2]
[400197154,1767191447142,-156.562526,0.00013699,2]
[400197155,1767191447152,-500.0,0.00013699,2]
[400197156,1767191447161,-500.0,0.00013699,2]
[400197157,1767191447170,-160.15137988,0.00013699,2]
[400197158,1767191447180,-500.0,0.00013699,2]
[400197159,1767191447189,-500.0,0.00013699,2]
[400197160,1767191447200,-500.0,0.00013699,2]
[400197161,1767191447211,-500.0,0.00013699,2]
[400197162,1767191447221,-500.0,0.00013699,2]
[400197163,1767191447230,-159.68059141,0.00013699,2]
[400197164,1767191447239,-500.0,0.00013699,2]
[400197165,1767191447248,-500.0,0.00013699,2]
[400197166,1767191447257,-500.0,0.00013699,2]
[400197167,1767191447266,-500.0,0.00013699,2]
[400197168,1767191447275,-500.0,0.00013699,2]
[400197169,1767191447285,-165.03764715,0.00013699,2]
[400197170,1767191447294,-500.0,0.00013699,2]
[400197171,1767191447303,-500.0,0.00013699,2]
[400197172,1767191447312,-500.0,0.00013699,2]
[400197173,1767191447322,-500.0,0.00013699,2]
[400197174,1767191447331,-500.0,0.00013699,2]
[400197175,1767191447340,-242.87306652,0.00013699,2]
[400197176,1767191447350,-500.0,0.00013699,2]
[400197177,1767191447359,-500.0,0.00013699,2]
[400197178,1767191447368,-587.30545204,0.00013699,2]
[400197179,1767191447377,-500.0,0.00013699,2]
[400197180,1767191447386,-500.0,0.00013699,2]
[400197181,1767191447395,-500.0,0.00013699,2]
[400197182,1767191447405,-157.55448324,0.00013699,2]
[400197183,1767191447415,-500.0,0.00013699,2]
[400197184,1767191447424,-500.0,0.00013699,2]
[400197185,1767191447433,-500.0,0.00013699,2]
[400197186,1767191447442,-500.0,0.00013699,2]
[400197187,1767191447451,-500.0,0.00013699,2]
[400197188,1767191447462,-500.0,0.00013699,2]
[400197189,1767191447471,-500.0,0.00013699,2]
[400197190,1767191447480,-500.0,0.00013699,2]
[400197191,1767191447489,-500.0,0.00013699,2]
[400197192,1767191447499,-500.0,0.00013699,2]
[400197193,1767191447508,-500.0,0.00013699,2]
[400197194,1767191447517,-500.0,0.00013699,2]
[400197195,1767191447527,-500.0,0.00013699,2]
[400197196,1767191447536,-500.0,0.00013699,2]
[400197197,1767191447546,-150.0,0.00013699,2]
[400197198,1767191447555,-500.0,0.00013699,2]
[400197199,1767191447564,-346.46150426,0.00013699,2]
[400197200,1767191447573,-500.0,0.00013699,2]
[400197201,1767191447583,-500.0,0.00013699,2]
[400197202,1767191447592,-500.0,0.00013699,2]
[400197203,1767191447602,-500.0,0.00013699,2]
[400197204,1767191447611,-500.0,0.00013699,2]
[400197205,1767191447621,-188.42009972,0.00013699,2]
[400197206,1767191447631,-500.0,0.00013699,2]
[400197207,1767191447641,-158.38534385,0.00013699,2]
[400197208,1767191447651,-158.18512633,0.00013699,2]
[400197209,1767191447660,-500.0,0.00013699,2]
[400197210,1767191447670,-303.93264249,0.00013699,2]
[400197211,1767191447679,-500.0,0.00013699,2]
[400197212,1767191447689,-500.0,0.00013699,2]
[400197213,1767191447698,-298.53483888,0.00013699,2]
[400197214,1767191447708,-307.59957655,0.00013699,2]
[400197215,1767191447717,-500.0,0.00013699,2]
[400197216,1767191447727,-500.0,0.00013699,2]
[400197217,1767191447737,-500.0,0.00013699,2]
[400197218,1767191447747,-500.0,0.00013699,2]
[400197219,1767191447756,-160.3309554,0.00013699,2]
[400197220,1767191447765,-500.0,0.00013699,2]
[400197221,1767191447774,-260.28159851,0.00013699,2]
[400197222,1767191447783,-158.38534191,0.00013699,2]
[400197223,1767191447792,-500.0,0.00013699,2]
[400197224,1767191447802,-158.18512013,0.00013699,2]
[400197225,1767191447811,-500.0,0.00013699,2]
[400197226,1767191447821,-500.0,0.00013699,2]
[400197227,1767191447830,-237.8458189,0.00013699,2]
[400197228,1767191447839,-500.0,0.00013699,2]
[400197229,1767191447848,-158.38886572,0.00013699,2]
[400197230,1767191447859,-260.2481779,0.00013699,2]
[400197231,1767191447868,-500.0,0.00013699,2]
[400197232,1767191447878,-157.18386067,0.00013699,2]
[400197233,1767191447887,-158.38532202,0.00013699,2]
[400197234,1767191447896,-416.75445415,0.00013699,2]
[400197235,1767191447906,-500.0,0.00013699,2]
[400197236,1767191447915,-500.0,0.00013699,2]
[400197237,1767191447924,-500.0,0.00013699,2]
[400197238,1767191447933,-309.28633635,0.00013699,2]
[400197239,1767191447943,-500.57498562,0.00013699,2]
[400197240,1767191447952,-158.3853059,0.00013699,2]
[400197241,1767191447962,-500.0,0.00013699,2]
[400197242,1767191447971,-500.0,0.00013699,2]
[400197243,1767191447980,-500.0,0.00013699,2]
[400197244,1767191447989,-500.0,0.00013699,2]
[400197245,1767191447999,-500.0,0.00013699,2]
[400197246,1767191448008,-511.92200299,0.00013699,2]
[400197247,1767191448018,-500.0,0.00013699,2]
[400197248,1767191448027,-500.0,0.00013699,2]
[400197249,1767191448036,-500.0,0.00013699,2]
[400197250,1767191448045,-500.0,0.00013699,2]
[400197251,1767191448054,-500.0,0.00013699,2]
[400197252,1767191448064,-500.0,0.00013699,2]
[400197253,1767191448073,-500.0,0.00013699,2]
[400197254,1767191448082,-500.0,0.00013699,2]
[400197255,1767191448092,-500.0,0.00013699,2]
[400197256,1767191448102,-500.0,0.00013699,2]
[400197257,1767191448111,-500.0,0.00013699,2]
[400197258,1767191448121,-500.0,0.00013699,2]
[400197259,1767191448131,-500.0,0.00013699,2]
[400197260,1767191448140,-500.0,0.00013699,2]
[400197261,1767191448150,-500.0,0.00013699,2]
[400197262,1767191448159,-500.0,0.00013699,2]
[400197263,1767191448168,-163.65866633,0.00013699,2]
[400197264,1767191448178,-500.0,0.00013699,2]
[400197265,1767191448187,-500.0,0.00013699,2]
[400197266,1767191448197,-500.0,0.00013699,2]
[400197267,1767191448207,-500.0,0.00013699,2]
[400197268,1767191448217,-500.0,0.00013699,2]
[400197269,1767191448226,-500.0,0.00013699,2]
[400197270,1767191448235,-500.0,0.00013699,2]
[400197271,1767191448244,-500.0,0.00013699,2]
[400197272,1767191448254,-500.0,0.00013699,2]
[400197273,1767191448264,-500.0,0.00013699,2]
[400197274,1767191448274,-500.0,0.00013699,2]
[400197275,1767191448283,-640.43328227,0.00013699,2]
[400197276,1767191448293,-500.0,0.00013699,2]
[400197277,1767191448302,-500.0,0.00013699,2]
[400197278,1767191448312,-500.0,0.00013699,2]
[400197279,1767191448322,-500.0,0.00013699,2]
[400197280,1767191448331,-500.0,0.00013699,2]
[400197281,1767191448340,-500.0,0.00013703,2]
[400197282,1767191448350,-5501.4584138,0.00013761,2]
[400197283,1767191448359,-250.0,0.00013764,2]
[400197284,1767191448369,-1000.0,0.00013821,2]
[400197285,1767191448378,-1000.0,0.00013821,2]
[400197286,1767191448388,-1000.0,0.00013821,2]
[400197287,1767191448397,-1000.0,0.00013821,2]
[400197288,1767191448407,-1000.0,0.00013821,2]
[400197289,1767191448417,-1006.37696416,0.00013821,2]
[400197290,1767191448426,-1000.0,0.00013821,2]
[400197291,1767191448435,-752.44576455,0.00013821,2]
[400197292,1767191448443,-1000.0,0.00013821,2]
[400197293,1767191448453,-1000.0,0.00013821,2]
[400197294,1767191448463,-1000.0,0.00013821,2]
[400197295,1767191448472,-1000.0,0.00013821,2]
[400197296,1767191448481,-1000.0,0.00013821,2]
[400197297,1767191448491,-1000.0,0.00013821,2]
[400197298,1767191448500,-1000.0,0.00013821,2]
[400197299,1767191448509,-1000.0,0.00013821,2]
[400197300,1767191448518,-1000.0,0.00013821,2]
[400197301,1767191448528,-196.20087533,0.00013821,2]
[400197302,1767191448537,-1000.0,0.00013821,2]
[400197303,1767191448546,-1000.0,0.00013821,2]
[400197304,1767191448555,-1000.0,0.00013821,2]
[400197305,1767191448565,-1000.0,0.00013821,2]
[400197306,1767191448574,-1000.0,0.00013821,2]
[400197307,1767191448584,-1000.0,0.00013821,2]
[400197308,1767191448594,-1000.0,0.00013821,2]
[400197309,1767191448603,-1000.0,0.00013821,2]
[400197310,1767191448612,-1000.0,0.00013821,2]
[400197311,1767191448621,-1000.0,0.00013821,2]
[400197312,1767191448630,-1000.0,0.00013821,2]
[400197313,1767191448641,-190.31177109,0.00013821,2]
[400197314,1767191448652,-1000.0,0.00013821,2]
[400197316,1767191448661,-1000.0,0.00013821,2]
[400197318,1767191448671,-1000.0,0.00013821,2]
[400197320,1767191448680,-186.16786472,0.00013821,2]
[400197321,1767191448690,-1000.0,0.00013821,2]
[400197323,1767191448699,-1000.0,0.00013821,2]
[400197325,1767191448709,-1000.0,0.00013821,2]
[400197327,1767191448720,-1000.0,0.00013821,2]
[400197329,1767191448730,-349.6789102,0.00013821,2]
[400197330,1767191448739,-1000.0,0.00013821,2]
[400197332,1767191448748,-2982.60894464,0.0001384,2]
[400197333,1767191448758,-35976.17910447,0.0001384,2]
[400197334,1767191448767,-617.40005154,0.0001389,2]
[400197335,1767191448777,-250.0,0.00014,2]
[400197336,1767191448786,-600.0,0.00014221,2]
[400197337,1767191448795,-1203.8912458,0.00014231,2]
[400197338,1767191448804,-200.0,0.00014246,2]
[400197339,1767191448814,-200.0,0.00014246,2]
[400197340,1767191448824,-201.41014505,0.00014246,2]
[400197341,1767191448833,-1000.0,0.00014247,2]
[400197342,1767191448843,-1000.0,0.00014247,2]
[400197343,1767191448852,-433.15519118,0.00014247,2]
[400197344,1767191448862,-1000.0,0.00014247,2]
[400197345,1767191448871,-251.84601956,0.00014247,2]
[400197346,1767191448881,-1000.0,0.00014247,2]
[400197347,1767191448890,-1024.36073826,0.00014247,2]
[400197348,1767191448899,-1000.0,0.00014247,2]
[400197349,1767191448909,-1000.0,0.00014247,2]
[400197350,1767191448918,-1000.0,0.00014247,2]
[400197351,1767191448927,-1000.0,0.00014247,2]
[400197352,1767191448936,-1000.0,0.00014247,2]
[400197353,1767191448946,-1000.0,0.00014247,2]
[400197354,1767191448956,-1000.0,0.00014247,2]
[400197355,1767191448965,-1000.0,0.00014247,2]